bitfinex-derivatives/quotes_SOLF0:USTF0_20260220
["timestamp","ask_amount","ask_price","bid_price","bid_amount"]
[1771625423601,3.59942179,84.29,84.233,4.18208159]
[1771625423809,3.59942179,84.3,84.241,4.18208159]
[1771625424805,3.59942179,84.3,84.242,4.22990807]
[1771625425011,10.6784,84.307,84.261,4.22990807]
[1771625425303,3.59942179,84.3,84.261,4.22990807]
[1771625425504,10.6796,84.298,84.261,4.22990807]
[1771625425704,3.59942179,84.29,84.246,4.22990807]
[1771625426207,3.59942179,84.3,84.246,4.22990807]
[1771625426809,10.6788,84.304,84.251,4.206316]
[1771625429606,3.59942179,84.3,84.251,4.206316]
[1771625432511,10.6798,84.296,84.251,4.206316]
[1771625433809,3.59942179,84.29,84.251,4.206316]
[1771625434813,3.59942179,84.3,84.251,4.206316]
[1771625438003,3.59942179,84.31,84.252,4.13732452]
[1771625438208,3.59942179,84.31,84.25,3.59942179]
[1771625438209,3.59942179,84.3,84.25,4.13732452]
[1771625438815,3.59942179,84.3,84.251,4.14046808]
[1771625439517,11.67983442,84.316,84.251,4.14046808]
[1771625439716,3.59942179,84.3,84.251,4.14046808]
[1771625439914,10.6786,84.306,84.251,4.14046808]
[1771625441613,10.96033247,84.352,84.261,4.11955387]
[1771625441814,3.59942179,84.32,84.271,4.11955387]
[1771625443014,10.676,84.326,84.271,4.11955387]
[1771625443218,3.59942179,84.32,84.271,4.11955387]
[1771625444817,3.59942179,84.32,84.273,4.11450571]
[1771625450119,3.59942179,84.31,84.263,4.11079548]
[1771625450320,3.59942179,84.29,84.263,4.11079548]
[1771625450721,3.59942179,84.28,84.24,4.10809678]
[1771625451824,3.59942179,84.29,84.24,4.10809678]
[1771625452727,3.59942179,84.28,84.24,4.10809678]
[1771625455124,10.6812,84.285,84.24,4.10809678]
[1771625456128,10.6812,84.285,84.202,14.77207216]
[1771625456129,3.59942179,84.26,84.223,4.13563099]
[1771625458027,3.60869439,84.26,84.223,4.13563099]
[1771625459729,3.60869439,84.27,84.223,4.13563099]
[1771625460923,3.60869439,84.29,84.241,3.83511908]
[1771625461128,3.60869439,84.28,84.241,3.83511908]
[1771625462333,3.60869439,84.3,84.241,3.83511908]
[1771625462533,3.60869439,84.29,84.241,3.83511908]
[1771625463529,3.38005693,84.299,84.241,3.83511908]
[1771625463732,10.6796,84.298,84.243,3.83511908]
[1771625464437,3.60869439,84.29,84.243,3.83511908]
[1771625464635,10.6783,84.308,84.255,3.83511908]
[1771625464837,3.60869439,84.29,84.255,3.83511908]
[1771625469739,7.29730518,84.29,84.255,3.83511908]
[1771625469942,3.68861079,84.289,84.24,3.75740895]
[1771625470637,3.60869439,84.28,84.24,3.75740895]
[1771625471044,3.60869439,84.28,84.242,3.75740895]
[1771625471945,3.68861079,84.289,84.242,3.75740895]
[1771625474447,3.68861079,84.289,84.246,3.75740895]
[1771625476048,3.71469233,84.287,84.246,3.75740895]
[1771625488355,3.7396612,84.279,84.246,3.75740895]
[1771625492658,3.73540794,84.31,84.246,3.75740895]
[1771625492857,3.77442719,84.299,84.251,3.75740895]
[1771625493357,3.77442719,84.299,84.252,3.75740895]
[1771625495154,3.77442719,84.299,84.253,3.75740895]
[1771625499965,3.77442719,84.299,84.254,3.65659673]
[1771625501168,3.77442719,84.299,84.255,3.65659673]
[1771625502162,11.05006878,84.323,84.24,3.60869439]
[1771625502163,3.76382816,84.297,84.245,11.0962013]
[1771625502365,3.76382816,84.289,84.242,3.65659673]
[1771625504369,3.76382816,84.289,84.245,3.65659673]
[1771625504864,3.76382816,84.289,84.249,3.65659673]
[1771625505772,3.76382816,84.289,84.252,3.65659673]
[1771625510979,3.81012486,84.299,84.252,3.65659673]
[1771625512080,3.81012486,84.299,84.255,3.65659673]
[1771625518479,3.81012486,84.299,84.258,3.65659673]
[1771625518675,3.81012486,84.309,84.263,3.65659673]
[1771625518873,3.81012486,84.309,84.268,3.65659673]
[1771625524585,3.80212845,84.299,84.258,11.0962013]
[1771625524781,3.80212845,84.299,84.259,3.65659673]
[1771625525182,3.80212845,84.299,84.261,3.65659673]
[1771625526677,10.6779,84.311,84.261,3.65659673]
[1771625526884,3.75599347,84.313,84.265,3.61730356]
[1771625527279,3.66513374,84.309,84.265,3.61730356]
[1771625530085,3.66513374,84.299,84.265,3.61730356]
[1771625531185,3.60525025,84.29,84.255,3.70584536]
[1771625531490,3.66513374,84.289,84.255,3.70584536]
[1771625532295,3.66513374,84.279,84.244,11.0962013]
[1771625532486,3.66513374,84.279,84.238,11.0962013]
[1771625532682,3.66513374,84.279,84.237,11.0962013]
[1771625532893,3.66513374,84.279,84.235,11.0962013]
[1771625533394,3.66513374,84.269,84.224,3.70584536]
[1771625533593,3.66513374,84.259,84.224,3.70584536]
[1771625534491,3.66513374,84.249,84.213,3.70584536]
[1771625534694,3.66513374,84.249,84.207,11.0962013]
[1771625535393,3.60525025,84.24,84.204,11.0962013]
[1771625535698,3.60525025,84.24,84.202,3.70584536]
[1771625535699,3.66513374,84.239,84.202,3.70584536]
[1771625540997,3.66513374,84.239,84.191,3.70584536]
[1771625541602,3.65741288,84.219,84.172,3.70584536]
[1771625543002,3.66513374,84.23,84.181,3.70584536]
[1771625543198,3.66513374,84.229,84.181,3.70584536]
[1771625544406,3.66513374,84.229,84.183,3.70584536]
[1771625544902,3.60525025,84.22,84.183,3.70584536]
[1771625545103,3.66369046,84.219,84.183,3.70584536]
[1771625550310,3.66369046,84.219,84.16,17.4866694]
[1771625550311,3.66513374,84.23,84.185,3.70584536]
[1771625550506,311.38656281,84.241,84.201,3.70584536]
[1771625552006,3.66513374,84.239,84.201,3.70584536]
[1771625557809,3.60525025,84.22,84.185,3.69892983]
[1771625558312,3.62255395,84.229,84.185,3.69892983]
[1771625558605,3.62255395,84.229,84.187,10.6936]
[1771625558801,3.60525025,84.24,84.191,3.69892983]
[1771625559610,3.62255395,84.239,84.191,3.69892983]
[1771625560209,3.62255395,84.239,84.193,3.69892983]
[1771625560713,3.60525025,84.23,84.193,3.69892983]
[1771625561713,3.60525025,84.23,84.199,14.39102983]
[1771625561914,3.62255395,84.239,84.18,3.60525025]
[1771625561915,3.62255395,84.239,84.2,3.69892983]
[1771625562216,31.09264016,84.242,84.2,3.69892983]
[1771625562904,31.09264016,84.242,84.204,10.6914]
[1771625563105,31.09264016,84.242,84.205,3.69892983]
[1771625563815,3.60525025,84.24,84.205,3.69892983]
[1771625564815,3.60525025,84.24,84.207,10.691]
[1771625565810,3.62255395,84.239,84.166,11.0962013]
[1771625566018,3.62255395,84.229,84.186,3.69892983]
[1771625567812,3.62255395,84.229,84.202,10.6916]
[1771625568008,5.025e-05,84.23,84.197,3.69892983]
[1771625568214,31.09264016,84.242,84.218,10.6897]
[1771625569118,13.11594016,84.242,84.218,10.6897]
[1771625569918,3.60525025,84.26,84.228,3.93095942]
[1771625570121,185.02012635,84.27,84.228,3.93095942]
[1771625570416,3.78046015,84.28,84.244,3.93095942]
[1771625571723,3.78046015,84.28,84.246,10.686]
[1771625573622,3.60525025,84.29,84.25,10.6856]
[1771625574324,3.84981047,84.29,84.25,10.6856]
[1771625575427,3.84981047,84.29,84.257,10.6846]
[1771625575627,3.60525025,84.29,84.258,3.91907703]
[1771625576727,3.60525025,84.3,84.258,3.91907703]
[1771625576922,3.60525025,84.31,84.258,3.91907703]
[1771625577123,3.60525025,84.29,84.258,3.91907703]
[1771625577922,3.60598815,84.29,84.258,3.91907703]
[1771625579824,3.60598815,84.28,84.243,3.83471677]
[1771625580221,0.36769519,84.288,84.231,3.83471677]
[1771625580528,0.36769519,84.306,84.251,3.83471677]
[1771625580725,3.89559488,84.3,84.254,3.87376101]
[1771625581120,3.60598815,84.31,84.261,3.87376101]
[1771625581325,3.60598815,84.31,84.264,10.6837]
[1771625581525,3.60598815,84.31,84.265,3.87376101]
[1771625581734,3.60598815,84.29,84.265,3.87376101]
[1771625582030,3.60598815,84.3,84.265,3.87376101]
[1771625585232,0.31911924,84.299,84.265,3.87376101]
[1771625585629,3.60598815,84.3,84.265,3.87376101]
[1771625588829,3.84486186,84.29,84.253,3.89728653]
[1771625589039,3.60598815,84.28,84.253,3.89728653]
[1771625590926,0.24983992,84.269,84.229,3.89180342]
[1771625591631,0.24983992,84.269,84.196,11.0437312]
[1771625591632,0.24983992,84.259,84.218,10.6896]
[1771625591830,0.24983992,84.249,84.195,3.89180342]
[1771625592033,3.60598815,84.24,84.195,3.89180342]
[1771625592233,0.24983992,84.249,84.195,3.89180342]
[1771625592835,0.24983992,84.249,84.2,3.88688082]
[1771625593726,3.60598815,84.24,84.2,3.88688082]
[1771625594528,0.25968513,84.239,84.19,14.57998082]
[1771625594728,3.84835785,84.23,84.19,14.57998082]
[1771625594936,3.60598815,84.22,84.19,3.88688082]
[1771625595330,3.60598815,84.22,84.181,10.6943]
[1771625598037,3.60598815,84.22,84.181,14.60772415]
[1771625599529,3.60598815,84.22,84.182,3.91310575]
[1771625599731,0.2423697,84.229,84.182,3.91310575]
[1771625601745,0.20597088,84.209,84.17,3.91373795]
[1771625602945,3.82200769,84.22,84.171,3.90871361]
[1771625603735,3.82200769,84.22,84.172,3.90871361]
[1771625604142,0.21601954,84.232,84.181,3.90871361]
[1771625605045,0.22034737,84.229,84.181,3.90871361]
[1771625605545,0.22034737,84.248,84.201,3.9065497]
[1771625606642,3.60598815,84.23,84.181,3.9065497]
[1771625606849,3.776532,84.23,84.181,3.9065497]
[1771625607743,3.776532,84.23,84.187,3.93145146]
[1771625607945,0.17054385,84.245,84.201,3.93145146]
[1771625608144,30.70447593,84.256,84.201,3.93145146]
[1771625608350,30.70447593,84.256,84.16,17.4866694]
[1771625608351,30.70447593,84.256,84.218,3.93145146]
[1771625608645,30.70447593,84.256,84.221,3.93145146]
[1771625608948,0.17054385,84.271,84.221,3.93145146]
[1771625609643,0.06275404,84.269,84.221,3.93145146]
[1771625612045,3.60598815,84.28,84.221,3.93145146]
[1771625612251,3.60598815,84.29,84.231,4.03851914]
[1771625613752,3.60598815,84.29,84.239,4.04226531]
[1771625615046,3.60598815,84.29,84.242,4.01662845]
[1771625616650,3.60598815,84.29,84.245,3.97508682]
[1771625617649,3.60598815,84.29,84.247,14.66122678]
[1771625617954,3.60598815,84.29,84.248,3.97522678]
[1771625618545,0.08327314,84.294,84.248,3.97522678]
[1771625618751,3.60598815,84.29,84.248,3.97522678]
[1771625621057,0.08327314,84.294,84.25,14.66235225]
[1771625621350,3.68158851,84.28,84.239,3.97675225]
[1771625621652,0.07560036,84.279,84.239,3.97675225]
[1771625622855,3.60598815,84.27,84.24,10.6869]
[1771625623355,3.60598815,84.27,84.24,14.67155219]
[1771625623950,3.60598815,84.27,84.241,3.98465219]
[1771625624154,0.07560036,84.279,84.241,3.98465219]
[1771625625153,0.16076121,84.291,84.241,3.98465219]
[1771625625359,3.60598815,84.28,84.246,3.97460795]
[1771625627964,3.76079913,84.28,84.246,3.97460795]
[1771625628458,0.15481098,84.279,84.237,10.6873]
[1771625628659,3.60598815,84.25,84.221,3.97460795]
[1771625632978,0.15481098,84.259,84.2,11.02761912]
[1771625632979,0.15481098,84.259,84.223,3.97460795]
[1771625633173,35.62,84.295,84.223,3.97460795]
[1771625633174,3.60598815,84.27,84.223,3.97460795]
[1771625633671,3.60598815,84.27,84.227,3.97460795]
[1771625634380,3.69769277,84.27,84.227,3.97460795]
[1771625635268,0.04442394,84.269,84.227,3.97460795]
[1771625636475,3.60598815,84.26,84.219,3.99234045]
[1771625637878,3.60598815,84.26,84.221,10.6893]
[1771625639981,3.60896489,84.26,84.221,10.6893]
[1771625641782,3.60896489,84.23,84.196,3.99914777]
[1771625642089,3.6397742,84.24,84.196,3.99914777]
[1771625642787,0.03157765,84.239,84.202,10.6917]
[1771625643187,0.03157765,84.239,84.202,14.6904636]
[1771625643488,0.03157765,84.239,84.203,3.9987636]
[1771625645989,3.60896489,84.23,84.203,3.9987636]
[1771625648391,46.58731357,84.279,84.177,4.02415444]
[1771625648392,3.60896489,84.21,84.177,4.02415444]
[1771625649392,3.60896489,84.21,84.179,4.0201294]
[1771625649890,3.60896489,84.22,84.179,4.0201294]
[1771625652794,3.60896489,84.21,84.179,4.0201294]
[1771625654789,0.12898667,84.246,84.197,3.95166166]
[1771625654993,0.12898667,84.239,84.197,3.95166166]
[1771625655594,0.12898667,84.239,84.2,3.95166166]
[1771625656797,35.62,84.264,84.2,3.95166166]
[1771625656994,3.60896489,84.25,84.2,3.95166166]
[1771625657191,3.60896489,84.24,84.2,3.95166166]
[1771625658691,3.60896489,84.25,84.2,3.95166166]
[1771625658891,10.96731357,84.287,84.201,4.0202823]
[1771625659092,10.96731357,84.288,84.211,4.0202823]
[1771625659290,3.60896489,84.26,84.211,4.0202823]
[1771625659497,3.60896489,84.26,84.217,4.0202823]
[1771625660803,3.60896489,84.26,84.223,4.0202823]
[1771625661398,3.60896489,84.27,84.223,4.0202823]
[1771625667605,3.60896489,84.27,84.226,4.06239741]
[1771625668109,3.60896489,84.28,84.228,4.06239741]
[1771625669005,3.60896489,84.28,84.236,4.05215308]
[1771625673211,3.60896489,84.28,84.243,4.06776776]
[1771625673718,3.60896489,84.28,84.231,4.06776776]
[1771625674912,10.6822,84.278,84.233,4.06776776]
[1771625676713,3.60896489,84.27,84.233,4.06776776]
[1771625678217,3.60896489,84.27,84.21,3.60896489]
[1771625678523,3.60896489,84.26,84.211,4.07334444]
[1771625679024,3.60896489,84.26,84.221,4.0676812]
[1771625680719,3.60896489,84.26,84.223,4.06146129]
[1771625682322,3.60896489,84.25,84.223,4.06146129]
[1771625682518,3.60896489,84.26,84.223,4.06146129]
[1771625697034,3.60896489,84.27,84.225,4.05357865]
[1771625702030,3.60804666,84.28,84.227,4.16208432]
[1771625702334,248.11536613,84.296,84.241,4.16208432]
[1771625703834,248.11536613,84.296,84.251,4.16207092]
[1771625704224,3.60804666,84.32,84.264,4.16207092]
[1771625704433,3.60804666,84.32,84.271,4.16207092]
[1771625705031,248.42731357,84.348,84.282,4.15185457]
[1771625705230,3.60804666,84.37,84.311,4.15185457]
[1771625705733,3.60804666,84.37,84.322,4.15185457]
[1771625706336,3.60804666,84.36,84.307,4.15185457]
[1771625707233,3.60804666,84.37,84.319,4.11558588]
[1771625707434,14.27734666,84.38,84.321,4.11558588]
[1771625708243,3.60804666,84.36,84.321,4.11558588]
[1771625710436,2.06338383,84.388,84.306,4.08688037]
[1771625710636,3.60804666,84.35,84.306,4.08688037]
[1771625711539,0.13160353,84.355,84.308,3.94750017]
[1771625711844,3.60804666,84.36,84.308,3.94750017]
[1771625712344,0.13160353,84.367,84.311,3.94750017]
[1771625713136,0.13160353,84.367,84.326,3.94636147]
[1771625713333,3.60804666,84.37,84.326,3.94636147]
[1771625713643,3.60804666,84.37,84.328,3.94636147]
[1771625713837,0.13388094,84.379,84.328,3.94636147]
[1771625714734,3.60804666,84.37,84.328,3.94636147]
[1771625721452,3.60804666,84.35,84.317,3.92876503]
[1771625721649,3.60804666,84.34,84.317,3.92876503]
[1771625721954,3.60804666,84.35,84.317,3.92876503]
[1771625725054,0.14839377,84.339,84.297,3.93910505]
[1771625726659,0.14839377,84.339,84.299,3.93910505]
[1771625728155,3.60804666,84.36,84.311,3.9464944]
[1771625728347,3.60804666,84.35,84.311,3.9464944]
[1771625729651,3.60804666,84.35,84.312,10.6778]
[1771625729851,3.60804666,84.36,84.313,3.94800839]
[1771625730050,3.60804666,84.36,84.31,3.60804666]
[1771625730051,3.60804666,84.37,84.321,3.94800839]
[1771625731650,3.60804666,84.37,84.329,10.6756]
[1771625731851,0.02628044,84.359,84.321,3.94800839]
[1771625733359,0.02628044,84.359,84.322,10.6765]
[1771625733560,0.02628044,84.359,84.323,4.00282885]
[1771625737156,3.60804666,84.35,84.323,4.00282885]
[1771625739854,0.02628044,84.359,84.323,4.00282885]
[1771625740968,3.60804666,84.35,84.312,4.03193598]
[1771625749868,3.60804666,84.33,84.294,10.92540567]
[1771625750066,3.60804666,84.33,84.29,4.02184716]
[1771625751769,3.60804666,84.33,84.295,4.00961507]
[1771625751971,10.90322942,84.378,84.301,4.00961507]
[1771625752165,3.60804666,84.35,84.301,4.00961507]
[1771625753776,3.60804666,84.35,84.312,3.9951222]
[1771625754567,0.03612822,84.359,84.315,3.9951222]
[1771625754773,3.60804666,84.36,84.315,3.9951222]
[1771625755779,3.60804666,84.36,84.317,4.06085725]
[1771625758374,484.28092663,84.389,84.31,3.60804666]
[1771625758375,16.58561346,84.399,84.31,21.356]
[1771625758578,16.58561346,84.399,84.35,3.60804666]
[1771625758777,16.58561346,84.399,84.342,10.92540567]
[1771625759278,16.58932969,84.389,84.336,10.92540567]
[1771625759977,16.58932969,84.379,84.329,10.92540567]
[1771625760480,16.58932969,84.379,84.326,10.92540567]
[1771625760682,16.58932969,84.379,84.338,10.6745]
[1771625760982,20.05987872,84.37,84.326,10.92540567]
[1771625761177,20.05987872,84.37,84.321,10.92540567]
[1771625761478,20.05987872,84.37,84.328,10.6757]
[1771625761872,3.60804666,84.36,84.317,10.92540567]
[1771625762079,20.05987872,84.35,84.314,10.92540567]
[1771625762269,20.05987872,84.35,84.299,10.92540567]
[1771625762671,20.05987872,84.35,84.301,10.92540567]
[1771625763781,20.05987872,84.35,84.307,10.6783]
[1771625763986,20.05258369,84.35,84.307,10.6783]
[1771625767485,16.48916012,84.365,84.319,10.6769]
[1771625767686,16.48916012,84.365,84.32,3.60075163]
[1771625768586,16.48916012,84.365,84.329,10.6756]
[1771625772087,16.48507116,84.359,84.319,10.6768]
[1771625772281,16.48507116,84.359,84.317,10.92540567]
[1771625772282,3.60075163,84.35,84.317,10.92540567]
[1771625772485,20.08582279,84.35,84.308,10.92540567]
[1771625772682,20.08582279,84.35,84.309,10.6781]
[1771625772883,3.60075163,84.33,84.305,10.92540567]
[1771625773083,3.60075163,84.33,84.304,10.92540567]
[1771625773286,3.60075163,84.33,84.299,10.49343144]
[1771625773488,3.60075163,84.33,84.287,14.76748476]
[1771625773687,3.60075163,84.33,84.284,14.76748476]
[1771625773989,3.60075163,84.33,84.299,10.6794]
[1771625778381,3.60075163,84.32,84.291,10.6804]
[1771625778588,3.60075163,84.32,84.284,14.76748476]
[1771625778589,20.12334598,84.32,84.27,452.89150174]
[1771625779190,20.1240586,84.31,84.27,434.52326535]
[1771625780492,16.52330697,84.31,84.27,434.52326535]
[1771625780692,16.52330697,84.31,84.278,10.682]
[1771625788597,16.50257904,84.322,84.285,10.6812]
[1771625790604,16.50257904,84.322,84.278,10.6821]
[1771625792501,3.60075163,84.31,84.27,434.52326535]
[1771625792804,16.50262242,84.299,84.25,3.60075163]
[1771625793708,16.50262242,84.299,84.26,10.6843]
[1771625800012,16.50262242,84.299,84.252,10.6853]
[1771625800618,16.50262242,84.299,84.25,3.60075163]
[1771625801801,16.50262242,84.299,84.258,10.6845]
[1771625802206,16.51271897,84.289,84.245,10.6862]
[1771625806618,16.573915,84.306,84.259,10.6845]
[1771625806917,16.58411888,84.299,84.259,10.6845]
[1771625817318,16.60407626,84.279,84.233,14.76748476]
[1771625817622,16.60407626,84.279,84.23,18.36823639]
[1771625817823,16.60407626,84.279,84.239,10.687]
[1771625826224,16.59735919,84.269,84.227,10.6885]
[1771625828824,16.61805204,84.266,84.21,3.60647887]
[1771625829725,16.61805204,84.266,84.217,10.6898]
[1771625830620,16.61805204,84.249,84.208,10.6909]
[1771625831518,16.63983989,84.247,84.198,10.6921]
[1771625832631,16.63983989,84.239,84.198,10.6921]
[1771625832932,16.63983989,84.239,84.19,10.6932]
[1771625834831,47.48,84.28,84.186,2.06338383]
[1771625834832,16.64264649,84.219,84.186,2.06338383]
[1771625835030,3.60647887,84.21,84.186,2.06338383]
[1771625835233,16.64264649,84.209,84.186,2.06338383]
[1771625835437,3.60647887,84.2,84.16,17.4866694]
[1771625835633,15.61095457,84.189,84.16,17.4866694]
[1771625836234,6.86761987,84.179,84.13,3.60647887]
[1771625836439,3.60647887,84.21,84.151,1.18089073]
[1771625836739,3.60647887,84.18,84.121,1.18089073]
[1771625837135,11.88,84.231,84.121,1.18089073]
[1771625837439,3.60647887,84.18,84.144,10.6991]
[1771625837644,3.60647887,84.19,84.144,10.6991]
[1771625838339,3.62197358,84.189,84.144,10.6991]
[1771625839140,3.62197358,84.202,84.162,10.6967]
[1771625840343,3.62197358,84.179,84.138,1.40891572]
[1771625841743,3.62197358,84.179,84.142,10.6993]
[1771625843045,3.60647887,84.17,84.132,10.7005]
[1771625843241,3.62197358,84.169,84.132,10.7005]
[1771625844036,35.6,84.231,84.121,10.7019]
[1771625844037,3.62197358,84.159,84.121,10.7019]
[1771625844238,3.62197358,84.159,84.101,1.49847126]
[1771625844436,3.62197358,84.149,84.101,1.49847126]
[1771625845140,35.6,84.217,84.111,3.76619781]
[1771625845141,3.60647887,84.17,84.111,3.76619781]
[1771625845544,3.60647887,84.17,84.126,10.7013]
[1771625846944,3.62197358,84.169,84.126,10.7013]
[1771625848550,3.60647887,84.18,84.137,3.76619781]
[1771625848750,3.62197358,84.179,84.137,3.76619781]
[1771625849249,3.60647887,84.15,84.11,3.76619781]
[1771625849548,7.22845245,84.15,84.11,3.76619781]
[1771625850054,3.62197358,84.15,84.111,10.7033]
[1771625851257,3.62197358,84.139,84.085,3.76619781]
[1771625852145,3.62197358,84.139,84.097,10.7051]
[1771625860456,3.86866405,84.151,84.108,10.7037]
[1771625860762,3.86866405,84.149,84.108,10.7037]
[1771625862066,3.86866405,84.139,84.097,10.705]
[1771625863564,3.86866405,84.129,84.087,10.7062]
[1771625865666,3.86866405,84.129,84.086,10.7064]
[1771625869166,3.86866405,84.129,84.093,10.7055]
[1771625869361,3.86866405,84.129,84.094,3.90695834]
[1771625869568,13.9226597,84.159,84.094,3.90695834]
[1771625869569,3.86866405,84.136,84.094,3.90695834]
[1771625870767,3.86866405,84.136,84.102,10.7043]
[1771625871267,7.47514292,84.13,84.094,3.90695834]
[1771625871967,2.06891632,84.159,84.094,3.90695834]
[1771625872165,3.86866405,84.149,84.101,3.90695834]
[1771625873163,3.86866405,84.149,84.112,10.7031]
[1771625875269,3.86866405,84.169,84.122,10.7019]
[1771625876572,3.86866405,84.169,84.127,3.90695834]
[1771625876770,3.60647887,84.18,84.131,3.90695834]
[1771625877162,3.86866405,84.179,84.131,3.90695834]
[1771625877669,3.86866405,84.179,84.133,10.7005]
[1771625879973,3.86866405,84.169,84.122,14.60875834]
[1771625881173,3.60647887,84.16,84.122,14.60875834]
[1771625883180,3.86866405,84.169,84.122,14.60875834]
[1771625885382,3.60647887,84.16,84.125,3.90695834]
[1771625885871,3.61733169,84.16,84.125,3.90695834]
[1771625886280,3.61733169,84.16,84.126,10.7013]
[1771625890174,3.86866405,84.169,84.126,4.06982304]
[1771625890880,4.24373833,84.181,84.136,4.06982304]
[1771625891177,4.24373833,84.189,84.136,4.06982304]
[1771625891778,4.24373833,84.189,84.144,10.6991]
[1771625891975,4.24373833,84.189,84.144,14.76892304]
[1771625893580,3.61733169,84.19,84.154,4.06982304]
[1771625894187,3.61733169,84.16,84.132,11.09562877]
[1771625894387,3.61733169,84.16,84.127,4.06982304]
[1771625897193,3.61733169,84.16,84.123,10.7017]
[1771625900993,7.86107002,84.16,84.123,10.7017]
[1771625901597,3.61733169,84.15,84.115,4.06982304]
[1771625908799,3.61733169,84.15,84.116,10.7027]
[1771625908996,3.61733169,84.15,84.116,14.77252304]
[1771625910295,3.61733169,84.15,84.117,4.06982304]
[1771625910496,4.24373833,84.157,84.123,10.7017]
[1771625911095,4.24373833,84.157,84.124,4.06982304]
[1771625914597,4.24373833,84.157,84.125,10.7015]
[1771625917905,4.06765412,84.168,84.126,4.07033921]
[1771625922105,4.06765412,84.181,84.14,3.61733169]
[1771625922302,4.06765412,84.181,84.146,4.07033921]
[1771625923510,3.61733169,84.19,84.146,4.07033921]
[1771625923706,4.06765412,84.195,84.146,4.07033921]
[1771625924208,3.61733169,84.19,84.146,4.07033921]
[1771625924809,3.61733169,84.19,84.153,4.07033921]
[1771625926615,4.06765412,84.195,84.155,4.07033921]
[1771625927511,3.61733169,84.2,84.155,4.07033921]
[1771625927711,3.61733169,84.2,84.157,4.07033921]
[1771625928306,4.06765412,84.206,84.157,4.07033921]
[1771625928810,4.06765412,84.206,84.161,4.07033921]
[1771625931606,4.06765412,84.206,84.163,4.07033921]
[1771625939721,4.06765412,84.216,84.165,4.07033921]
[1771625939919,3.61733169,84.21,84.165,4.07033921]
[1771625940315,3.61733169,84.21,84.16,3.61733169]
[1771625940316,3.61733169,84.21,84.167,4.07033921]
[1771625940515,4.06765412,84.229,84.171,4.07033921]
[1771625940720,14.57945998,84.292,84.17,3.61733169]
[1771625940721,4.06765412,84.269,84.211,4.07033921]
[1771625940923,4.06765412,84.269,84.221,4.07033921]
[1771625941828,4.06765412,84.269,84.228,10.6883]
[1771625942028,4.06765412,84.269,84.228,14.75863921]
[1771625942629,4.06765412,84.269,84.232,4.07033921]
[1771625943925,4.06765412,84.259,84.201,4.07033921]
[1771625944125,3.61733169,84.24,84.201,4.07033921]
[1771625945827,3.61733169,84.24,84.204,10.6914]
[1771625947226,47.5,84.299,84.231,2.32483821]
[1771625947429,47.5,84.299,84.251,2.33110788]
[1771625947430,4.34919287,84.299,84.251,2.33110788]
[1771625947831,3.61733169,84.29,84.251,2.33110788]
[1771625948027,7.95524199,84.29,84.251,2.33110788]
[1771625948332,4.34919287,84.306,84.251,2.33110788]
[1771625949135,4.34919287,84.306,84.257,2.75685428]
[1771625950532,3.60604912,84.3,84.257,2.75685428]
[1771625951629,4.34919287,84.299,84.257,2.75685428]
[1771625952333,4.34919287,84.299,84.261,2.69230607]
[1771625952532,4.34919287,84.312,84.261,2.69230607]
[1771625953033,4.34919287,84.312,84.273,10.6827]
[1771625953335,3.60604912,84.32,84.274,2.68314443]
[1771625953535,322.92181608,84.325,84.274,2.68314443]
[1771625953736,3.60604912,84.32,84.274,2.68314443]
[1771625954741,3.60604912,84.32,84.276,2.69486774]
[1771625954941,4.34919287,84.325,84.276,2.69486774]
[1771625956137,2.06463861,84.341,84.281,2.68233969]
[1771625956339,4.34919287,84.362,84.311,2.68233969]
[1771625956545,4.34919287,84.375,84.321,2.68798777]
[1771625956847,4.34919287,84.389,84.337,2.68798777]
[1771625957043,3.60604912,84.38,84.337,2.68798777]
[1771625957240,4.34919287,84.389,84.337,2.68798777]
[1771625957443,3.60604912,84.37,84.337,2.68798777]
[1771625957634,3.60604912,84.37,84.311,2.67870083]
[1771625957944,4.34919287,84.38,84.311,2.67870083]
[1771625958744,4.34919287,84.38,84.314,2.68433052]
[1771625959640,4.34919287,84.38,84.318,2.64240687]
[1771625960042,4.34919287,84.368,84.26,21.3687]
[1771625960249,4.34919287,84.368,84.305,2.64243994]
[1771625961143,4.34919287,84.368,84.307,2.60489398]
[1771625961350,4.34919287,84.389,84.307,2.60489398]
[1771625962642,4.34919287,84.389,84.333,10.6751]
[1771625964449,4.34919287,84.383,84.328,2.61549022]
[1771625964657,4.34919287,84.383,84.313,2.59019539]
[1771625964850,4.34919287,84.383,84.324,2.61613808]
[1771625965461,4.34919287,84.383,84.34,2.62121008]
[1771625966758,4.34919287,84.383,84.343,10.6738]
[1771625966960,4.34919287,84.383,84.34,2.62121008]
[1771625967159,4.34919287,84.383,84.311,2.60021265]
[1771625968761,4.34919287,84.379,84.324,2.61007876]
[1771625968961,4.34919287,84.379,84.291,2.58738975]
[1771625969155,4.34919287,84.369,84.291,2.58738975]
[1771625970754,4.34919287,84.367,84.314,10.6774]
[1771625971156,4.34919287,84.367,84.271,2.5857174]